bitfinex/quotes_ETHUSD_20250822
["timestamp","ask_amount","ask_price","bid_price","bid_amount"]
[1755888264523,0.104,4797.5,4797.4,0.19372203]
[1755888265027,0.104,4797.5,4797.4,0.48875447]
[1755888265544,0.3965,4797.5,4797.4,0.19385447]
[1755888265759,0.104,4797.5,4797.4,0.19385447]
[1755888265965,0.104,4797.5,4797.4,0.48875447]
[1755888266127,0.104,4797.5,4797.4,0.19385447]
[1755888266551,0.104,4797.5,4797.4,0.48875447]
[1755888267047,0.104,4797.5,4797.4,0.19385447]
[1755888267964,0.3965,4797.5,4797.4,0.19385447]
[1755888268263,1.3864,4797.5,4797.4,0.19385447]
[1755888270063,0.9471,4797.5,4797.4,0.19385447]
[1755888270363,1.757,4797.8,4797.4,0.48875447]
[1755888270364,0.022,4797.8,4797.4,0.48875447]
[1755888270541,0.022,4797.8,4797.5,0.66439865]
[1755888270737,0.022,4797.8,4797.7,0.2949]
[1755888270951,0.022,4797.8,4797.7,0.48909275]
[1755888271167,0.022,4797.8,4797.7,0.6575398]
[1755888271340,0.022,4797.8,4797.7,1.12808312]
[1755888271537,0.022,4797.8,4797.7,1.10724885]
[1755888271733,0.022,4797.8,4797.7,1.10732838]
[1755888272365,0.022,4797.8,4797.7,1.85300609]
[1755888272929,0.022,4797.8,4797.7,5.24822932]
[1755888273162,0.002,4798.3,4797.7,5.84232838]
[1755888273354,0.002,4798.3,4797.8,9.42885933]
[1755888273529,0.002,4798.3,4798.2,0.2949]
[1755888273732,0.002,4798.3,4798.2,0.48918133]
[1755888274060,0.002,4798.3,4798.2,0.93888133]
[1755888274964,0.002,4798.3,4798.2,0.95972247]
[1755888275195,0.022,4798.8,4798.7,19.61825459]
[1755888275365,3.068746,4800.0,4798.8,14.393179]
[1755888275551,0.10881256,4799.7,4799.1,0.2949]
[1755888275740,3.068746,4800.0,4799.1,0.51001857]
[1755888275942,3.068746,4800.0,4799.1,0.95971857]
[1755888276162,3.068746,4800.0,4799.1,7.59540733]
[1755888276475,3.068746,4800.0,4799.1,6.08075933]
[1755888276678,3.068746,4800.0,4799.1,7.57457009]
[1755888276877,3.068746,4800.0,4799.1,6.08075933]
[1755888277044,3.068746,4800.0,4799.1,6.70649133]
[1755888277437,3.068746,4800.0,4799.1,23.32474592]
[1755888277767,3.068746,4800.0,4799.2,3.0]
[1755888277978,3.068746,4800.0,4799.7,1.41359733]
[1755888278136,3.068746,4800.0,4799.7,8.88601596]
[1755888278335,3.068746,4800.0,4799.7,10.80494141]
[1755888278574,3.068746,4800.0,4799.7,18.22260841]
[1755888278775,3.068746,4800.0,4799.7,17.46550941]
[1755888278974,3.068746,4800.0,4799.7,19.37532401]
[1755888279276,3.068746,4800.0,4799.7,19.14964601]
[1755888279486,3.068746,4800.0,4799.7,17.72554493]
[1755888279651,0.02,4800.8,4800.6,3.0]
[1755888279851,0.02,4800.8,4800.7,2.53404593]
[1755888280051,0.02,4800.8,4800.7,0.1938326]
[1755888280469,0.8558,4800.8,4800.7,0.1938326]
[1755888280786,0.8558,4800.8,4800.7,0.19369282]
[1755888280982,0.3125,4800.8,4800.7,0.19369282]
[1755888281357,0.7518,4800.8,4800.7,0.19369282]
[1755888281898,0.02,4800.8,4800.7,0.48859282]
[1755888282103,0.02,4800.8,4800.7,0.19369282]
[1755888282579,0.02,4800.8,4800.7,0.6918621]
[1755888282760,0.02,4800.8,4800.7,4.35169239]
[1755888282968,0.02,4800.8,4800.7,4.90539239]
[1755888283186,0.02,4800.8,4800.7,7.8845621]
[1755888283502,0.02,4800.8,4800.7,4.64885131]
[1755888283791,0.02,4800.8,4800.7,7.9923451]
[1755888284494,0.02,4800.8,4800.7,8.80965127]
[1755888284897,0.02,4801.8,4800.7,9.55385748]
[1755888285094,0.02,4801.8,4800.9,3.0]
[1755888285309,0.02,4801.8,4801.7,0.2949]
[1755888285489,0.02,4801.8,4801.7,3.93569282]
[1755888285658,0.02,4801.8,4801.7,6.93569282]
[1755888285863,0.02,4801.8,4801.7,10.37277282]
[1755888286091,0.02,4801.8,4801.7,11.6747981]
[1755888286509,0.02,4801.8,4801.7,5.2425701]
[1755888286669,0.02,4801.8,4801.7,3.29769282]
[1755888286875,0.02,4801.8,4801.7,6.93469282]
[1755888287117,0.022,4801.8,4801.7,6.93469282]
[1755888287270,0.3145,4801.8,4801.7,3.93469282]
[1755888287477,0.7538,4801.8,4801.7,3.83069282]
[1755888287808,0.7538,4801.8,4801.7,0.19369282]
[1755888288110,0.126,4801.8,4801.7,0.19369282]
[1755888288281,0.022,4801.8,4801.7,0.85624474]
[1755888288814,0.022,4801.8,4801.7,0.87707069]
[1755888289022,0.022,4801.8,4801.7,1.16537069]
[1755888289188,0.022,4801.8,4801.7,1.16441338]
[1755888289511,0.022,4801.8,4801.7,1.16041338]
[1755888289801,0.022,4801.8,4801.7,0.85125493]
[1755888289971,0.022,4801.8,4801.7,4.48725493]
[1755888290177,0.022,4801.8,4801.7,4.79638088]
[1755888290496,0.022,4801.8,4801.7,4.77555493]
[1755888290698,0.022,4801.8,4801.7,4.48725493]
[1755888292102,0.022,4801.8,4801.7,4.29455192]
[1755888292276,0.022,4801.8,4801.7,4.48727051]
[1755888292477,0.022,4801.8,4801.7,4.50809646]
[1755888292671,0.022,4801.8,4801.7,4.48727051]
[1755888293404,0.022,4801.8,4801.7,4.77557051]
[1755888293704,0.022,4801.8,4801.7,4.48727051]
[1755888294007,0.022,4801.8,4801.7,4.79639646]
[1755888294209,0.022,4801.8,4801.7,4.77557051]
[1755888294879,0.022,4801.8,4801.7,4.48727051]
[1755888295223,0.7806,4801.8,4801.7,0.29681134]
[1755888295606,0.8846,4801.8,4801.7,0.19281134]
[1755888298081,0.8846,4801.8,4801.7,0.19317246]
[1755888298281,0.7806,4801.8,4801.7,0.19331369]
[1755888298613,0.8846,4801.8,4801.7,0.19331369]
[1755888298788,1.80646,4801.8,4801.7,0.19335636]
[1755888300480,1.80646,4801.8,4801.7,0.10348319]
[1755888300481,18.42471459,4801.8,4801.7,0.10348319]
[1755888300681,21.42471459,4801.8,4801.7,0.10348319]
[1755888300928,21.42471459,4801.8,4800.8,0.001]
[1755888300929,3.66,4801.7,4800.8,0.001]
[1755888301105,3.66,4801.7,4800.3,0.001]
[1755888301106,0.66,4800.8,4800.3,0.001]
[1755888301424,1.0627,4800.4,4800.3,0.001]
[1755888301837,1.5226,4800.4,4800.3,0.001]
[1755888305422,4.4956,4800.4,4800.3,0.001]
[1755888305630,4.0357,4800.4,4800.3,0.001]
[1755888305792,0.104,4800.4,4800.3,0.001]
[1755888305993,1.734,4800.7,4800.3,0.2893]
[1755888306197,0.104,4800.4,4800.3,0.2893]
[1755888307298,0.104,4800.4,4800.3,0.7285]
[1755888308130,0.8626,4800.4,4800.3,0.001]
[1755888309093,1.78226,4800.4,4800.3,0.001]
[1755888309395,1.78226,4800.4,4800.3,0.0762]
[1755888311236,5.41426,4800.4,4800.3,0.0762]
[1755888311804,1.78226,4800.4,4800.3,0.0762]
[1755888312439,5.41426,4800.4,4800.3,0.0762]
[1755888312930,2.10835807,4800.4,4800.3,0.0762]
[1755888313108,5.74035807,4800.4,4800.3,0.0762]
[1755888313436,5.74035807,4800.4,4799.3,0.001]
[1755888313437,0.66,4800.3,4799.3,0.001]
[1755888313624,1.0627,4799.4,4799.3,0.001]
[1755888313928,6.4287,4799.4,4799.3,0.001]
[1755888314439,6.13,4799.4,4799.3,0.001]
[1755888314602,6.4287,4799.4,4799.3,0.001]
[1755888315006,6.8886,4799.4,4799.3,0.001]
[1755888315204,7.57746,4799.4,4799.3,0.001]
[1755888316346,7.11756,4799.4,4799.3,0.001]
[1755888316545,6.13,4799.4,4799.3,0.001]
[1755888317541,2.498,4799.4,4799.3,0.001]
[1755888317710,6.129,4799.4,4799.3,0.001]
[1755888318040,6.4313,4799.4,4799.3,0.001]
[1755888318213,6.8788,4799.4,4799.3,0.001]
[1755888318543,7.56668,4799.4,4799.3,0.001]
[1755888318843,7.11918,4799.4,4799.3,0.001]
[1755888319719,3.18588,4799.4,4799.3,0.001]
[1755888319919,6.129,4799.4,4799.3,0.001]
[1755888320343,2.8003,4799.4,4799.3,0.001]
[1755888320550,6.4313,4799.4,4799.3,0.001]
[1755888320842,0.8003,4799.4,4799.3,0.001]
[1755888321043,4.8788,4799.4,4799.3,0.001]
[1755888321247,5.36668,4799.4,4799.3,0.001]
[1755888323425,6.13550736,4799.4,4799.3,0.001]
[1755888323744,9.13550736,4799.4,4799.3,0.001]
[1755888325414,9.46173532,4799.4,4799.3,0.001]
[1755888326425,9.13550736,4799.4,4799.3,0.001]
[1755888327817,9.21900736,4799.4,4799.3,0.001]
[1755888328551,16.21900736,4799.4,4799.3,0.001]
[1755888329117,12.14050736,4799.4,4799.3,0.001]
[1755888329317,1.09470736,4799.4,4799.3,0.001]
[1755888329529,5.05090199,4799.4,4799.3,0.001]
[1755888329850,5.71090199,4799.4,4799.3,0.001]
[1755888330035,5.68700736,4799.4,4799.3,0.001]
[1755888330748,5.38470736,4799.4,4799.3,0.001]
[1755888331249,1.26682736,4799.4,4799.3,0.001]
[1755888331568,4.23682736,4799.4,4799.3,0.001]
[1755888331771,4.53912736,4799.4,4799.3,0.001]
[1755888331934,5.64662736,4799.4,4799.3,0.001]
[1755888332646,8.64662736,4799.4,4799.3,0.001]
[1755888332840,10.78850536,4799.4,4799.3,0.001]
[1755888333183,6.05100536,4799.4,4799.3,0.001]
[1755888333339,7.98662736,4799.4,4799.3,0.001]
[1755888333756,8.64662736,4799.4,4799.3,0.001]
[1755888334446,8.73012736,4799.4,4799.3,0.001]
[1755888335057,9.05634278,4799.4,4799.3,0.001]
[1755888337282,9.05534278,4799.4,4799.3,0.001]
[1755888337587,11.19722078,4799.4,4799.3,0.001]
[1755888341575,10.87100536,4799.4,4799.3,0.001]
[1755888342062,10.87100536,4799.4,4798.8,0.02]
[1755888342063,3.66,4799.3,4798.8,0.02]
[1755888342238,20.68455459,4798.9,4798.8,0.02]
[1755888342443,3.66,4798.8,4796.8,0.021]
[1755888342803,0.104,4796.9,4796.8,0.021]
[1755888342969,5.468,4796.9,4796.8,0.3082]
[1755888343676,5.468,4796.9,4796.8,0.5031549]
[1755888344071,5.468,4796.9,4796.8,0.50313203]
[1755888344272,1.839,4796.9,4796.8,0.73959514]
[1755888344574,5.467,4796.9,4796.8,1.80420135]
[1755888344972,1.839,4796.9,4796.8,1.05999514]
[1755888345173,5.467,4796.9,4796.8,1.80420135]
[1755888346482,5.467,4796.9,4796.8,1.56779073]
[1755888347257,1.839,4796.9,4796.8,1.56779073]
[1755888347452,1.839,4796.9,4796.8,0.82358452]
[1755888347988,5.467,4796.9,4796.8,0.82358452]
[1755888348787,5.467,4796.9,4796.8,1.5726554]
[1755888349080,5.467,4796.9,4796.8,0.82358452]
[1755888349454,5.467,4796.9,4796.8,1.57303941]
[1755888350050,5.467,4796.9,4796.8,0.82372418]
[1755888350477,5.467,4796.9,4796.8,1.57303941]
[1755888351453,5.467,4796.9,4796.8,1.25263941]
[1755888351876,6.7988,4796.9,4796.8,0.21612418]
[1755888352075,3.3575,4796.9,4796.8,0.21612418]
[1755888352280,6.6727,4796.9,4796.8,0.21612418]
[1755888352481,6.6727,4796.9,4796.8,0.21631966]
[1755888353157,6.9845,4796.9,4796.8,0.21621592]
[1755888353570,6.6727,4796.9,4796.8,0.21621592]
[1755888353767,6.9845,4796.9,4796.8,0.21621592]
[1755888354377,1.735,4796.9,4796.8,0.51381592]
[1755888354581,5.466,4796.9,4796.8,0.51381592]
[1755888355591,5.466,4796.9,4796.8,0.51365563]
[1755888356296,5.466,4796.9,4796.8,0.21605563]
[1755888356962,6.9111,4796.9,4796.8,0.21605563]
[1755888357293,7.60221,4796.9,4796.8,0.21605563]
[1755888358264,6.23384736,4796.9,4796.8,0.21605563]
[1755888358464,7.01894736,4796.9,4796.8,0.21605563]
[1755888360301,6.91494736,4796.9,4796.8,0.21605563]
[1755888360510,3.39294736,4796.9,4796.8,0.21605563]
[1755888360716,2.50384736,4796.9,4796.8,0.21605563]
[1755888360892,7.2693321,4796.9,4796.8,0.21605563]
[1755888361208,7.2693321,4796.9,4796.8,0.021]
[1755888361408,7.2693321,4796.9,4796.8,0.21594934]
[1755888361824,7.2693321,4796.9,4796.8,0.21598747]
[1755888362331,10.2693321,4796.9,4796.8,0.21598747]
[1755888362623,10.2693321,4796.9,4796.6,0.001]
[1755888362624,1.38693321,4796.8,4796.6,0.001]
[1755888362847,7.5978,4796.7,4796.6,0.001]
[1755888363185,4.4451,4796.7,4796.6,0.001]
[1755888363420,8.0711,4796.7,4796.6,0.001]
[1755888363629,10.212978,4796.7,4796.6,0.001]
[1755888364281,3.113678,4796.7,4796.6,0.001]
[1755888364480,0.4158,4796.7,4796.6,0.001]
[1755888364688,3.73,4796.7,4796.6,0.001]
[1755888365024,4.39,4796.7,4796.6,0.001]
[1755888365682,3.73,4796.7,4796.6,0.001]
[1755888368821,3.73,4796.7,4796.6,0.2986]
[1755888369196,3.73,4796.7,4796.6,0.001]
[1755888370281,1.736,4797.2,4796.6,0.619]
[1755888370490,3.625,4797.1,4796.6,0.2986]
[1755888370887,3.625,4797.1,4796.6,0.619]
[1755888371088,3.625,4797.1,4796.7,0.3204]
[1755888371308,3.625,4797.1,4797.0,0.2976]
[1755888372217,1.736,4797.2,4797.0,0.2976]
[1755888372520,3.625,4797.1,4797.0,0.2976]
[1755888372890,1.736,4797.2,4797.0,0.2976]
[1755888373096,3.624,4797.1,4797.0,0.2976]
[1755888374228,3.624,4797.1,4796.6,0.75031523]
[1755888374229,3.624,4797.1,4796.6,0.001]
[1755888375112,1.736,4797.2,4797.0,0.2976]
[1755888375313,3.624,4797.1,4797.0,0.2976]
[1755888376112,3.624,4797.1,4796.8,0.001]
[1755888376428,3.624,4797.1,4797.0,0.2976]
[1755888377397,3.624,4797.1,4797.0,0.618]
[1755888377797,3.624,4797.1,4797.0,0.2976]
[1755888378438,3.623,4797.1,4797.0,0.618]
[1755888378617,3.623,4797.1,4797.0,0.2976]
[1755888380311,3.727,4797.1,4797.0,0.618]
[1755888380508,3.727,4797.1,4797.0,0.2976]
[1755888380509,0.104,4797.1,4797.0,0.2976]
[1755888380742,3.726,4797.1,4797.0,0.618]
[1755888381117,3.726,4797.1,4797.0,0.2976]
[1755888381320,3.726,4797.1,4797.0,0.40393152]
[1755888381321,0.104,4797.1,4797.0,0.40393152]
[1755888381532,0.104,4797.1,4797.0,8.39867997]
[1755888381739,0.002,4797.2,4797.1,3.0]
[1755888381919,0.002,4797.7,4797.1,5.31117152]
[1755888382114,0.002,4797.7,4797.2,0.51522154]
[1755888382310,0.002,4797.7,4797.6,1.42105765]
[1755888382516,0.002,4797.7,4797.6,0.49462154]
[1755888382930,0.002,4797.7,4797.6,0.6202]
[1755888383243,0.002,4797.7,4797.6,0.81474229]
[1755888383859,0.002,4798.1,4797.7,7.245093]
[1755888384159,0.002,4798.1,4798.0,20.57780665]
[1755888384341,0.002,4798.1,4798.0,38.69054894]
[1755888384516,0.002,4798.1,4798.0,26.81129194]
[1755888385062,0.002,4798.1,4798.0,33.82467294]
[1755888385349,0.002,4798.7,4798.1,3.66]
[1755888385517,0.002,4798.7,4798.6,0.2998]
[1755888385719,0.002,4798.7,4798.6,9.93282529]
[1755888385942,0.002,4798.7,4798.6,9.90839329]
[1755888386142,0.002,4798.7,4798.6,9.28129529]
[1755888386547,0.002,4798.7,4798.6,7.20792229]
[1755888386747,0.002,4798.7,4798.6,5.80952124]
[1755888386954,0.002,4798.7,4798.6,5.01403379]
[1755888387824,0.002,4798.7,4798.6,4.69363379]
[1755888388045,0.002,4798.7,4798.6,4.69267588]
[1755888388276,0.002,4798.7,4798.6,5.01307588]
[1755888388440,0.002,4798.7,4798.6,5.75603668]
[1755888389467,0.002,4798.7,4798.6,4.69267588]
[1755888391666,0.002,4798.7,4798.6,4.79667588]
[1755888391978,0.002,4798.7,4798.6,1.39287588]
[1755888391979,0.2906,4798.7,4798.6,1.39287588]
[1755888392276,0.2906,4798.7,4798.6,0.19358438]
[1755888392277,0.7475,4798.7,4798.6,0.19358438]
[1755888393247,0.002,4798.7,4798.6,0.19358438]
[1755888393778,0.7475,4798.7,4798.6,0.19358438]
[1755888396446,0.2906,4798.7,4798.6,0.19358438]
[1755888396651,0.106,4798.7,4798.6,0.19358438]
[1755888397178,0.106,4798.7,4797.7,0.02084332]
[1755888397378,0.104,4798.2,4797.8,0.31250508]
[1755888397556,0.104,4798.2,4798.1,0.2998]
[1755888397762,0.104,4798.2,4798.1,0.49348467]
[1755888398156,0.104,4798.2,4798.1,0.19368467]
[1755888398554,2.4805,4798.2,4798.1,0.19368467]
[1755888398747,0.99355,4798.2,4798.1,0.19368467]
[1755888398949,0.002,4798.7,4798.1,0.49348467]
[1755888399258,0.4569,4798.6,4798.2,0.19368467]
[1755888399457,0.002,4798.7,4796.9,3.0]
[1755888399458,0.2886,4798.3,4797.5,0.7429608]
[1755888399663,0.4569,4798.2,4797.6,0.19385527]
[1755888399862,0.4569,4798.2,4797.7,0.19385527]
[1755888400046,0.002,4798.7,4798.1,0.2998]
[1755888400251,0.002,4798.7,4798.2,0.51425527]
[1755888400451,0.002,4798.7,4798.6,0.2998]
[1755888400671,0.002,4798.7,4798.6,0.49372081]
[1755888400870,0.002,4798.7,4798.6,0.83496022]
[1755888401183,0.002,4798.7,4798.6,1.03003217]
[1755888401791,0.002,4798.7,4798.6,17.64803882]
[1755888401955,0.002,4799.2,4798.7,3.66]
[1755888402151,0.002,4799.2,4799.1,0.2998]
[1755888402383,0.002,4799.2,4799.1,0.49370799]
[1755888402567,0.002,4799.2,4799.1,1.41031879]
[1755888403090,0.002,4799.2,4799.1,5.52720158]
[1755888403479,0.002,4799.2,4799.1,5.84760158]
[1755888404169,0.002,4799.2,4799.1,5.52720158]
[1755888405986,0.002,4799.2,4799.1,4.11051879]
[1755888406290,0.2906,4799.2,4799.1,0.9166108]
[1755888406587,0.2906,4799.2,4799.1,1.11064613]
[1755888406886,0.002,4799.2,4799.1,1.85585779]
[1755888407052,0.002,4799.2,4799.1,1.11064613]
[1755888407555,0.002,4799.2,4799.1,1.85585779]
[1755888407863,0.002,4799.2,4799.1,1.89168337]
[1755888408057,0.002,4799.2,4799.1,17.34045237]
[1755888408386,0.022,4799.8,4799.2,3.0]
[1755888408685,0.022,4799.8,4799.6,1.42270048]
[1755888408886,0.022,4799.8,4799.6,5.57527039]
[1755888409182,0.022,4799.8,4799.6,3.98653533]
[1755888409383,0.022,4799.8,4799.6,3.20753533]
[1755888409989,0.022,4799.8,4799.6,0.92253533]
[1755888410188,0.022,4799.8,4799.6,3.06441333]
[1755888410359,0.022,4799.8,4799.6,2.96041333]
[1755888410779,0.022,4799.8,4799.6,6.26707639]
[1755888410983,0.022,4799.8,4799.6,10.24941333]
[1755888411180,0.022,4799.8,4799.6,10.34441333]
[1755888412195,0.4662,4801.2,4799.6,10.34441333]
[1755888412491,0.4662,4800.9,4800.4,0.74678276]
[1755888412697,0.4662,4800.9,4800.5,0.19448511]
[1755888412906,0.3014,4800.6,4800.4,0.74678276]
[1755888413189,0.3014,4800.6,4800.5,0.1945015]
[1755888413190,0.7676,4800.6,4800.5,0.1945015]
[1755888415492,0.7676,4800.6,4800.5,0.1944777]
[1755888416780,0.3014,4800.6,4800.5,0.1944777]
[1755888417807,0.02,4800.8,4800.5,4.91053491]
[1755888418105,0.02,4800.8,4800.6,0.5148777]
[1755888418292,0.02,4800.8,4800.7,0.4985777]
[1755888418677,0.02,4800.8,4800.7,0.1944777]
[1755888418877,0.02,4800.8,4800.7,0.51940799]
[1755888419212,0.02,4800.8,4800.7,1.06080015]
[1755888419581,0.02,4800.8,4800.7,1.08163044]
[1755888419805,0.02,4801.8,4800.9,3.0]
[1755888419991,0.02,4801.8,4801.3,1.48781652]
[1755888420177,0.02,4801.8,4801.0,5.2234777]
[1755888420178,0.02,4801.8,4801.7,0.104]
[1755888420501,0.02,4801.8,4801.7,1.10514929]
[1755888420669,0.02,4801.8,4801.7,12.07569924]
[1755888420870,0.02,4801.8,4801.7,4.10514929]
[1755888421177,0.7876,4801.8,4801.7,0.19394435]
[1755888422069,0.53741749,4801.8,4801.7,0.93799176]
[1755888422270,0.07121749,4801.8,4801.7,0.93796056]
[1755888423119,1.734,4802.7,4801.7,0.19394435]
[1755888423281,0.4662,4802.5,4801.8,0.95855664]
[1755888423482,0.4662,4802.5,4801.8,0.02082552]
[1755888423779,0.4662,4802.5,4801.9,0.19369541]
[1755888423984,0.68622,4802.5,4802.0,0.19369541]
[1755888424309,0.4662,4802.4,4802.1,0.19365221]
[1755888424510,0.4662,4802.4,4802.2,0.19365221]
[1755888424811,0.4662,4802.4,4802.3,0.19365221]
[1755888424812,1.1262,4802.4,4802.3,0.19365221]
[1755888425010,1.735622,4802.4,4802.3,0.19365221]
[1755888426124,5.351622,4802.4,4802.3,0.19365221]
[1755888426329,0.7676,4802.4,4802.3,0.19365221]
[1755888427409,0.002,4803.4,4802.4,4.109]
[1755888427597,0.02,4805.8,4803.8,0.66]
[1755888427925,0.02,4805.8,4805.7,0.3041]
[1755888428126,0.02,4805.8,4805.7,0.21446083]
[1755888428349,0.02,4805.8,4805.7,3.46139711]
[1755888428546,0.02,4805.8,4805.7,2.32978061]
[1755888428820,0.02,4805.8,4805.7,0.19365221]
[1755888429201,0.7876,4805.8,4805.7,0.19365221]
[1755888429597,0.7876,4805.8,4805.7,0.19289926]
[1755888429999,0.7876,4805.8,4805.7,0.74747162]
[1755888430198,0.7876,4805.8,4805.7,0.19289926]
[1755888431231,0.8916,4805.8,4805.7,0.19289926]
[1755888432533,0.8916,4805.8,4804.0,0.104]
[1755888432534,0.4254,4805.8,4804.6,0.66]
[1755888432829,0.02,4805.8,4805.7,1.0681]
[1755888432995,0.02,4805.8,4805.7,20.90691862]
[1755888433196,0.1,4806.0,4805.9,0.66]
[1755888433399,0.1,4806.0,4805.9,10.52268081]
[1755888433614,0.1,4806.0,4805.9,10.92248081]
[1755888433814,0.02,4806.8,4805.9,10.92248081]
[1755888433815,0.02,4806.8,4805.9,0.49613681]
[1755888434094,0.104,4806.6,4806.5,0.55256866]
[1755888434317,0.8716,4806.6,4806.5,0.19186324]
[1755888436607,0.7676,4806.6,4806.5,0.19186324]
[1755888436934,0.02,4806.8,4806.5,1.23254882]
[1755888437235,0.02,4806.8,4806.6,0.33592284]
[1755888437400,0.02,4806.8,4806.7,0.49596324]
[1755888438355,0.02,4806.8,4806.7,0.74320971]
[1755888438532,0.02,4806.8,4806.7,0.19186324]
[1755888439172,0.7518,4806.8,4806.7,0.19186324]
[1755888441245,0.02,4806.8,4806.7,0.19186324]
[1755888441566,0.02,4806.8,4806.7,0.7045]
[1755888441863,0.02,4806.8,4806.7,0.62156203]
[1755888442579,0.02,4806.8,4806.7,0.19127738]
[1755888442871,0.7518,4806.8,4806.7,0.19127738]
[1755888443232,0.02,4806.8,4806.7,0.19127738]
[1755888443632,0.3223,4806.8,4806.7,0.19127738]
[1755888443847,0.7518,4806.8,4806.7,0.19127738]
[1755888444630,0.7518,4806.8,4805.1,0.55134647]
[1755888444982,0.4295,4806.7,4805.2,0.34315434]
[1755888445187,0.4295,4806.7,4805.3,0.19155035]
[1755888445359,0.4151,4806.7,4805.4,0.21236027]
[1755888445562,0.4151,4806.7,4805.8,0.02]
[1755888445736,0.4151,4806.7,4805.9,0.19155035]
[1755888445937,0.66,4806.6,4806.0,0.19155035]
[1755888446164,1.732,4806.5,4806.1,0.19155035]
[1755888446374,3.707,4806.4,4806.2,0.19155035]
[1755888446573,3.707,4806.4,4805.8,0.02]
[1755888446574,0.104,4805.9,4805.8,0.02]
[1755888446875,0.4063,4805.9,4805.8,0.2119538]
[1755888447535,0.8358,4805.9,4805.8,0.2119538]
[1755888448886,0.104,4805.9,4805.8,0.5166538]
[1755888449272,0.104,4805.9,4805.8,0.87274156]
[1755888449581,0.104,4805.9,4805.8,0.31899394]
[1755888450648,0.104,4805.9,4805.8,0.29930701]
[1755888451282,0.104,4805.9,4805.8,0.32011828]
[1755888451494,0.104,4805.9,4805.8,1.03589567]
[1755888451660,0.104,4805.9,4805.8,0.29931009]
[1755888452287,0.104,4805.9,4805.8,1.34059567]
[1755888452490,0.104,4805.9,4805.8,0.60401009]
[1755888452996,0.104,4805.9,4805.8,0.19226995]
[1755888454793,0.104,4805.9,4805.8,1.29714832]
[1755888455375,0.104,4805.9,4805.8,0.19226995]
[1755888456471,0.104,4806.0,4805.8,0.19226995]
[1755888456717,0.104,4806.0,4805.9,0.19327331]
[1755888457412,0.4295,4809.8,4806.1,1.913]
[1755888457708,1.732,4810.5,4807.2,0.4087]
[1755888457709,0.104,4808.7,4807.2,0.4087]
[1755888457906,0.104,4808.7,4807.5,1.85604162]
[1755888458104,0.002,4807.7,4807.6,0.2140737]
[1755888458406,0.104,4809.1,4807.7,3.66]
[1755888458574,1.732,4809.2,4808.8,1.48266431]
[1755888458575,0.104,4809.2,4808.8,1.48266431]
[1755888458776,0.4295,4809.1,4808.9,0.63811848]
[1755888459009,1.732,4809.9,4809.0,0.63811848]
[1755888459178,1.732,4809.9,4809.2,1.11210423]
[1755888459377,1.732,4809.9,4809.2,0.19327331]
[1755888459378,1.08446617,4809.3,4809.2,0.19327331]
[1755888459606,1.62241279,4809.3,4809.2,0.19296557]
[1755888459781,1.72641279,4809.3,4809.0,0.74096006]
[1755888459981,0.4295,4809.2,4809.1,0.74096006]
[1755888460293,0.7318,4809.2,4809.0,0.74090508]
[1755888460497,0.104,4809.1,4809.0,0.74090508]
[1755888460707,0.4063,4809.1,4809.0,0.74090508]
[1755888460888,0.8358,4809.1,4809.0,0.74090508]
[1755888461633,0.99759662,4809.1,4808.9,0.74090508]
[1755888461918,0.99759662,4809.1,4808.7,0.55517282]
[1755888461919,2.1615,4809.0,4808.7,0.55517282]
[1755888462120,2.1615,4809.0,4808.3,0.55517282]
[1755888462121,0.3023,4808.8,4808.3,0.55517282]
[1755888462420,1.06755966,4808.7,4808.3,0.555377]
[1755888462620,0.3023,4808.4,4808.3,0.555377]
[1755888462826,0.3023,4808.4,4808.2,0.555377]
[1755888463012,3.755,4808.9,4808.1,0.74090508]
[1755888463233,4.1845,4808.9,4808.7,0.55523833]
[1755888463432,0.4295,4808.9,4808.7,0.55523833]
[1755888463634,0.78216617,4809.3,4808.8,0.74090508]
[1755888463945,0.78216617,4809.3,4809.0,0.73988059]
[1755888464241,0.78216617,4809.3,4809.0,1.11210423]
[1755888464442,0.78216617,4809.3,4809.2,0.73924416]
[1755888465535,0.78216617,4809.3,4808.8,0.02]
[1755888465737,0.78216617,4809.3,4809.2,1.10778193]
[1755888465922,0.78216617,4809.3,4809.1,1.10778193]
[1755888465923,1.08446617,4809.3,4809.1,1.10778193]
[1755888466123,1.08446617,4809.3,4808.8,0.02]
[1755888466124,0.28164662,4809.2,4808.9,0.55428392]
[1755888466447,0.78216617,4809.3,4809.1,0.55428392]
[1755888466645,0.3023,4809.2,4809.0,0.55428392]
[1755888467049,0.7318,4809.2,4808.9,0.55428392]
[1755888467216,0.7318,4809.2,4808.8,0.02]
[1755888467217,0.4295,4809.1,4808.8,0.02]
[1755888467544,0.3023,4808.9,4808.8,0.02]
[1755888467745,0.45369662,4808.9,4808.8,0.02]
[1755888467916,0.88929662,4808.9,4808.8,0.02]
[1755888468541,1.54929662,4808.9,4808.8,0.02]
[1755888469277,0.66,4808.8,4807.8,0.02]
[1755888469428,0.9702,4807.9,4807.8,0.02]
[1755888469773,6.4652,4807.9,4807.8,0.02]
[1755888470061,7.54732,4807.9,4807.8,0.02]
[1755888471834,7.65132,4807.9,4807.8,0.02]
[1755888472233,10.65132,4807.9,4807.8,0.02]
[1755888473641,10.65132,4807.9,4806.8,0.02]